bitfinex-derivatives/quotes_SOLF0:USTF0_20250803
["timestamp","ask_amount","ask_price","bid_price","bid_amount"]
[1754259286825,7.9212434,161.35,161.34,3.19]
[1754259287729,4.6712434,161.35,161.34,3.19]
[1754259288232,7.9212434,161.35,161.34,3.19]
[1754259289327,11.07143973,161.35,161.34,3.19]
[1754259289532,11.07143973,161.35,161.34,117.53]
[1754259290132,17.26853973,161.35,161.34,117.53]
[1754259291130,14.1183434,161.35,161.34,3.19]
[1754259291325,14.1183434,161.35,161.34,117.53]
[1754259292136,14.11406949,161.35,161.34,117.53]
[1754259292433,7.91696949,161.35,161.34,117.53]
[1754259293036,7.91696949,161.35,161.34,3.19]
[1754259293234,7.91696949,161.35,161.34,117.53]
[1754259295137,7.91696949,161.35,161.34,3.19]
[1754259295440,14.11406949,161.35,161.34,117.53]
[1754259297134,14.11406949,161.35,161.34,3.19]
[1754259297335,14.11406949,161.35,161.34,117.51]
[1754259297635,3.25,161.33,161.31,3.19]
[1754259297829,3.25,161.33,161.32,114.32]
[1754259298234,6.40019633,161.34,161.32,114.32]
[1754259298538,3.25,161.34,161.33,3.19]
[1754259298733,7.9110776,161.34,161.33,3.19]
[1754259299738,14.1085776,161.34,161.33,3.19]
[1754259300338,7.9110776,161.34,161.33,3.19]
[1754259300639,7.81127393,161.34,161.3,3.19]
[1754259300939,4.6610776,161.33,161.32,3.19]
[1754259301139,4.6610776,161.33,161.32,117.49]
[1754259301442,7.9110776,161.33,161.32,117.49]
[1754259301837,14.1089776,161.33,161.32,117.49]
[1754259302442,7.9110776,161.33,161.32,117.49]
[1754259302844,3.25,161.33,161.32,117.49]
[1754259303045,7.90825726,161.33,161.32,117.49]
[1754259303446,3.25,161.32,161.27,3.19]
[1754259303640,3.25,161.32,161.29,3.19]
[1754259303841,3.15019633,161.34,161.3,114.3]
[1754259304040,3.25,161.31,161.3,114.3]
[1754259304436,3.25,161.31,161.3,3.19]
[1754259304644,3.25,161.31,161.3,117.49]
[1754259304843,9.34909633,161.31,161.27,233.0]
[1754259305041,6.40019633,161.29,161.28,117.49]
[1754259306042,6.40019633,161.29,161.28,3.19]
[1754259306251,11.05260048,161.29,161.28,114.3]
[1754259307045,17.25200048,161.29,161.28,114.3]
[1754259307541,6.1998,161.28,161.26,3.19]
[1754259307742,9.4498,161.28,161.27,117.49]
[1754259309350,6.1998,161.28,161.26,117.49]
[1754259309552,3.25,161.27,161.26,117.49]
[1754259310250,3.25,161.26,161.24,3.19]
[1754259310469,3.25,161.23,161.21,3.19]
[1754259311153,3.15019633,161.25,161.23,3.19]
[1754259311356,6.40019633,161.25,161.23,3.19]
[1754259311752,22.33318704,161.33,161.23,3.19]
[1754259311753,6.40019633,161.24,161.23,3.19]
[1754259312154,3.25,161.24,161.23,3.19]
[1754259312750,3.25,161.24,161.22,114.3]
[1754259313057,6.40019633,161.23,161.22,117.49]
[1754259313458,12.60189633,161.23,161.22,3.19]
[1754259313757,3.25,161.22,161.21,114.3]
[1754259313955,6.40019633,161.22,161.21,117.68]
[1754259314751,12.60229633,161.22,161.21,114.3]
[1754259315962,3.53,161.2,161.17,3.38]
[1754259316163,3.53,161.19,161.18,117.68]
[1754259316358,3.53,161.21,161.18,114.3]
[1754259316555,6.68019633,161.22,161.2,3.38]
[1754259316760,3.53,161.22,161.2,3.38]
[1754259317054,3.53,161.24,161.21,114.32]
[1754259317260,3.53,161.24,161.22,3.38]
[1754259317855,4.93720468,161.27,161.21,114.32]
[1754259318060,3.53,161.23,161.21,114.32]
[1754259318362,3.53,161.22,161.19,114.3]
[1754259318563,3.53,161.23,161.2,3.38]
[1754259318766,3.53,161.22,161.2,3.38]
[1754259319059,4.93720468,161.25,161.19,114.3]
[1754259319262,4.93720468,161.26,161.21,3.38]
[1754259319467,3.53,161.24,161.22,114.3]
[1754259319660,4.93720468,161.26,161.23,3.38]
[1754259319968,4.63324487,161.25,161.23,3.38]
[1754259320260,8.16324487,161.24,161.23,3.38]
[1754259320862,14.36454487,161.24,161.19,120.5231]
[1754259321065,3.53,161.23,161.2,3.38]
[1754259321359,4.93720468,161.22,161.19,117.7]
[1754259321558,3.53,161.21,161.18,114.32]
[1754259321765,3.53,161.21,161.18,117.7]
[1754259322665,6.2029,161.2,161.18,117.7]
[1754259322862,3.53,161.19,161.18,117.7]
[1754259323262,3.53,161.21,161.18,3.38]
[1754259324063,8.46720468,161.24,161.18,3.38]
[1754259324759,14.66860468,161.24,161.19,6.2032]
[1754259324963,3.53,161.23,161.2,3.38]
[1754259325363,9.7317,161.23,161.2,3.38]
[1754259326067,3.53,161.22,161.2,3.38]
[1754259326260,3.53,161.21,161.2,3.38]
[1754259328260,3.53,161.23,161.2,3.38]
[1754259328468,3.53,161.24,161.22,3.38]
[1754259328769,6.2009,161.26,161.23,3.38]
[1754259328966,8.16228671,161.25,161.23,3.38]
[1754259329166,4.63228671,161.24,161.23,3.38]
[1754259329566,8.16228671,161.24,161.23,3.38]
[1754259332768,14.36358671,161.24,161.23,3.38]
[1754259332968,8.16228671,161.24,161.23,3.38]
[1754259333166,3.53,161.23,161.22,3.38]
[1754259333371,10.83753632,161.23,161.22,117.7]
[1754259333573,3.53,161.22,161.2,3.38]
[1754259333771,3.53,161.22,161.2,117.7]
[1754259334074,3.53,161.21,161.2,114.32]
[1754259334571,3.53,161.21,161.2,3.38]
[1754259334769,3.53,161.21,161.2,117.68]
[1754259336172,3.53,161.21,161.2,3.38]
[1754259336372,3.53,161.21,161.2,117.68]
[1754259336873,3.53,161.21,161.2,3.38]
[1754259337073,3.53,161.21,161.2,117.68]
[1754259339070,3.53,161.21,161.2,3.38]
[1754259339277,3.53,161.21,161.19,117.68]
[1754259339674,3.53,161.21,161.2,3.38]
[1754259340678,3.53,161.21,161.17,6.204]
[1754259340679,3.53,161.2,161.17,3.38]
[1754259340877,3.53,161.2,161.18,114.3]
[1754259341077,3.53,161.2,161.17,3.38]
[1754259341271,3.53,161.21,161.18,3.38]
[1754259341974,3.53,161.19,161.18,3.38]
[1754259342166,3.53,161.19,161.17,117.68]
[1754259342766,3.53,161.19,161.16,3.38]
[1754259343076,3.53,161.17,161.15,117.68]
[1754259343276,3.53,161.15,161.12,3.38]
[1754259343477,3.53,161.15,161.13,117.68]
[1754259343679,3.53,161.15,161.13,3.38]
[1754259343877,3.53,161.15,161.13,114.3]
[1754259344470,3.53,161.15,161.11,3.5]
[1754259344670,3.53,161.15,161.12,117.8]
[1754259344870,3.53,161.13,161.12,117.8]
[1754259345267,3.53,161.13,161.12,3.5]
[1754259346173,3.53,161.13,161.11,114.3]
[1754259346174,3.53,161.15,161.05,416.8]
[1754259346379,4.93720468,161.14,161.09,3.5]
[1754259346671,9.7356,161.13,161.1,3.5]
[1754259346879,9.7356,161.13,161.09,114.32]
[1754259346880,3.53,161.12,161.11,3.5]
[1754259347275,9.7359,161.12,161.11,3.5]
[1754259348284,4.93720468,161.12,160.97,89.46108742]
[1754259348577,8.46720468,161.04,160.96,3.5]
[1754259348881,6.2089,161.05,160.98,4.93720468]
[1754259349079,3.53,161.05,161.0,3.5]
[1754259349579,6.92251471,161.1,160.96,3.5]
[1754259349580,4.93720468,161.01,160.96,3.5]
[1754259349882,3.53,161.0,160.97,118.9]
[1754259350275,3.53,161.05,160.98,115.5]
[1754259350480,4.93720468,161.03,160.98,115.5]
[1754259350672,4.93720468,161.03,160.99,3.5]
[1754259350876,3.53,161.07,161.01,3.5]
[1754259351077,3.53,161.04,161.01,3.5]
[1754259351276,6.92251471,161.1,161.01,3.5]
[1754259351476,4.93720468,161.06,160.95,416.86]
[1754259351687,4.93720468,161.04,160.97,3.5]
[1754259351983,3.53,161.01,160.99,3.5]
[1754259352285,3.53,161.01,161.0,3.5]
[1754259352286,9.7402,161.01,161.0,3.5]
[1754259352485,3.53,161.01,161.0,119.18]
[1754259352676,3.53,161.02,161.01,3.5]
[1754259352985,4.93720468,161.1,161.01,3.5]
[1754259352986,8.46720468,161.05,161.01,3.5]
[1754259353377,3.53,161.04,161.01,3.5]
[1754259353779,4.93720468,161.06,161.01,3.5]
[1754259354089,8.46720468,161.08,161.01,3.5]
[1754259354387,3.53,161.08,161.01,3.5]
[1754259355091,8.46720468,161.1,161.02,4.93720468]
[1754259355385,8.46720468,161.1,161.03,3.5]
[1754259355578,8.46720468,161.1,161.05,3.5]
[1754259355778,3.53,161.09,161.05,3.5]
[1754259356388,4.93720468,161.08,161.04,3.5]
[1754259356684,3.53,161.07,161.06,115.74]
[1754259357484,3.53,161.07,161.04,115.7]
[1754259357686,8.46720468,161.05,161.04,115.7]
[1754259358087,3.53,161.04,161.02,3.5]
[1754259358281,4.93720468,161.05,161.02,3.5]
[1754259358683,4.93720468,161.05,161.03,115.8]
[1754259358883,9.7393,161.04,161.03,115.8]
[1754259359084,3.53,161.04,161.03,119.3]
[1754259359387,8.17669576,161.04,161.03,119.28]
[1754259360388,4.64669576,161.04,161.03,119.28]
[1754259360683,8.46720468,161.1,161.05,3.5]
[1754259360891,8.17690035,161.09,161.05,3.5]
[1754259361088,8.17690035,161.08,161.05,3.5]
[1754259361291,4.64690035,161.07,161.06,119.28]
[1754259362486,3.53,161.06,161.0,3.5]
[1754259362682,4.64690035,161.05,161.02,3.5]
[1754259362887,3.53,161.09,161.04,9.709]
[1754259363192,4.63851403,161.08,161.05,3.5]
[1754259363387,3.53,161.14,161.08,9.7074]
[1754259363587,4.63777724,161.13,161.09,3.5]
[1754259363795,4.63777724,161.12,161.09,3.5]
[1754259364092,4.63777724,161.11,161.1,3.5]
[1754259365090,9.7352,161.14,161.1,9.7067]
[1754259365289,9.7352,161.14,161.11,119.42]
[1754259365488,9.7352,161.14,161.12,3.5]
[1754259365684,9.7352,161.14,161.11,115.92]
[1754259365991,9.7352,161.14,161.13,3.5]
[1754259367683,3.53,161.16,161.13,115.82]
[1754259368292,3.53,161.16,161.13,119.32]
[1754259368990,6.2044,161.16,161.13,119.32]
[1754259369192,3.53,161.14,161.13,119.32]
[1754259372198,4.93720468,161.17,161.08,4.93720468]
[1754259372396,3.53,161.14,161.09,119.26]
[1754259372591,3.53,161.14,161.1,3.5]
[1754259373192,6.2056,161.13,161.1,3.5]
[1754259373500,3.53,161.11,161.1,3.5]
[1754259373695,11.14240468,161.15,161.1,3.5]
[1754259373899,3.43,161.13,161.1,3.5]
[1754259375098,6.2056,161.13,161.1,3.26]
[1754259375294,3.43,161.11,161.1,3.26]
[1754259376997,6.2056,161.13,161.1,3.26]
[1754259377197,3.43,161.12,161.1,3.26]
[1754259377389,3.43,161.13,161.1,3.26]
[1754259377998,9.6349,161.15,161.1,3.26]
[1754259378200,3.43,161.14,161.1,3.26]
[1754259378900,3.43,161.13,161.1,3.26]
[1754259379302,3.43,161.13,161.12,3.26]
[1754259379502,3.43,161.12,160.99,4.93720468]
[1754259379700,3.43,161.07,161.0,3.26]
[1754259379897,3.43,161.06,161.03,3.26]
[1754259380600,9.6383,161.06,161.03,3.26]
[1754259380899,3.43,161.06,161.03,3.26]
[1754259381207,3.43,161.06,161.02,6.2097]
[1754259381208,3.43,161.06,161.05,3.26]
[1754259381800,9.6383,161.06,161.05,3.26]
[1754259382001,3.43,161.06,161.05,3.26]
[1754259382500,3.43,161.06,161.05,118.94]
[1754259382707,3.43,161.08,161.06,3.26]
[1754259382904,3.43,161.08,161.01,4.93720468]
[1754259382905,3.43,161.08,161.07,115.66]
[1754259383103,3.43,161.08,161.07,118.92]
[1754259383504,3.43,161.08,161.07,115.68]
[1754259384204,3.43,161.08,161.07,118.94]
[1754259386705,3.43,161.12,161.08,3.26]
[1754259386903,4.56540411,161.11,161.08,3.26]
[1754259387205,3.43,161.12,161.08,3.26]
[1754259387410,4.56858364,161.11,161.09,3.26]
[1754259387604,3.43,161.13,161.09,3.26]
[1754259387818,6.92251471,161.19,161.11,4.93720468]
[1754259387819,3.43,161.17,161.11,4.93720468]
[1754259388103,4.93720468,161.21,161.14,3.26]
[1754259388309,3.43,161.18,161.15,115.66]
[1754259388506,3.43,161.18,161.17,3.26]
[1754259388706,8.00162598,161.18,161.17,3.26]
[1754259388905,4.57162598,161.18,161.15,3.26]
[1754259389104,3.43,161.16,161.12,3.26]
[1754259389407,3.43,161.15,161.14,3.26]
[1754259389803,3.43,161.15,161.14,115.68]
[1754259390409,8.00115761,161.15,161.14,115.68]
[1754259390917,3.43,161.14,161.09,11.14420468]
[1754259391204,3.43,161.14,161.11,3.26]
[1754259391606,3.43,161.13,161.12,115.68]
[1754259392414,3.43,161.13,161.12,118.94]
[1754259393509,3.43,161.13,161.12,115.68]
[1754259394309,3.43,161.13,161.08,11.14460468]
[1754259394506,9.6356,161.13,161.11,3.26]
[1754259394711,6.2056,161.13,161.1,3.26]
[1754259394912,6.2056,161.13,161.11,115.56]
[1754259395416,3.43,161.12,161.11,115.56]
[1754259395815,6.2056,161.13,161.1,3.26]
[1754259395816,3.43,161.11,161.1,3.26]
[1754259396009,3.43,161.13,161.11,3.26]
[1754259396213,3.43,161.12,161.11,3.26]
[1754259396410,3.43,161.14,161.11,3.26]
[1754259397015,3.43,161.13,161.12,3.26]
[1754259398513,9.6357,161.13,161.08,6.2074]
[1754259398818,3.43,161.11,161.1,3.26]
[1754259399513,3.43,161.13,161.11,3.26]
[1754259399816,3.43,161.14,161.11,3.26]
[1754259400513,6.2049,161.15,161.11,3.26]
[1754259400717,4.57312248,161.14,161.11,3.26]
[1754259400915,3.43,161.14,161.11,3.26]
[1754259401118,3.43,161.14,161.13,3.26]
[1754259401314,3.43,161.14,161.13,118.66]
[1754259401616,3.43,161.14,161.13,118.64]
[1754259403717,14.22168445,161.14,161.13,115.38]
[1754259404816,8.01648445,161.14,161.09,6.207]
[1754259405022,3.24,161.13,161.12,3.42]
[1754259405710,6.92251471,161.19,161.11,4.93720468]
[1754259405711,11.85971939,161.19,161.11,4.93720468]
[1754259405913,4.58691009,161.18,161.14,3.42]
[1754259406117,11.85971939,161.22,161.16,3.42]
[1754259406118,3.24,161.22,161.16,3.42]
[1754259406417,11.85971939,161.24,161.18,3.42]
[1754259406418,3.24,161.2,161.18,3.42]
[1754259406616,7.82889284,161.19,161.18,3.42]
[1754259406821,3.24,161.19,161.18,3.42]
[1754259407824,6.92251471,161.25,161.18,3.42]
[1754259408027,3.24,161.22,161.18,3.42]
[1754259408521,3.24,161.22,161.19,6.203]
[1754259408718,3.24,161.22,161.17,115.3]
[1754259408920,3.24,161.22,161.21,3.42]
[1754259409123,7.83087014,161.22,161.21,118.74]
[1754259409317,3.24,161.21,161.17,3.42]
[1754259409517,3.24,161.19,161.16,115.3]
[1754259409712,9.4443,161.17,161.15,115.28]
[1754259410224,3.24,161.16,161.15,115.28]
[1754259411222,9.4444,161.16,161.15,115.28]
[1754259411622,3.24,161.15,161.14,3.42]
[1754259411819,3.24,161.15,161.14,118.86]
[1754259412018,9.4448,161.15,161.14,3.42]
[1754259412218,3.24,161.13,161.12,3.42]
[1754259412419,3.24,161.13,161.12,118.8]
[1754259413524,3.24,161.18,161.11,3.42]
[1754259413721,3.24,161.16,161.12,118.82]
[1754259415125,6.2051,161.15,161.12,118.82]
[1754259415425,3.24,161.13,161.12,118.82]
[1754259417029,7.90672865,161.21,161.13,3.42]
[1754259417226,3.24,161.19,161.13,3.42]
[1754259417526,3.24,161.17,161.13,9.6255]
[1754259417726,3.24,161.17,161.14,3.42]
[1754259418128,9.4434,161.19,161.14,9.625]
[1754259418329,7.83156554,161.18,161.15,3.42]
[1754259418531,4.59156554,161.17,161.16,118.72]
[1754259418724,3.24,161.19,161.17,3.42]
[1754259418922,4.59200597,161.18,161.17,3.42]
[1754259420128,7.83234135,161.18,161.17,3.42]
[1754259421322,3.24,161.22,161.17,11.32672865]
[1754259421522,3.24,161.24,161.18,3.42]
[1754259421723,7.83472258,161.23,161.18,3.42]
[1754259421923,3.24,161.25,161.21,3.42]
[1754259422124,4.59529158,161.24,161.23,3.42]
[1754259422921,3.24,161.25,161.23,3.42]
[1754259423121,3.24,161.25,161.24,3.42]
[1754259423427,14.82924336,161.31,161.22,121.5021]
[1754259423428,3.24,161.24,161.23,3.42]
[1754259425330,3.24,161.25,161.24,3.42]
[1754259425834,3.24,161.3,161.24,3.42]
[1754259426041,3.24,161.28,161.24,3.42]
[1754259426436,3.24,161.27,161.23,3.42]
[1754259428233,3.24,161.27,161.25,3.42]
[1754259428436,23.31740098,161.33,161.25,3.42]
[1754259428637,3.24,161.26,161.25,3.42]
[1754259428837,3.24,161.26,161.25,118.56]
[1754259429739,3.24,161.26,161.22,236.42]
[1754259429941,3.24,161.26,161.23,115.1]
[1754259430345,3.24,161.25,161.23,118.52]
[1754259430540,3.24,161.25,161.23,115.1]
[1754259431638,9.4413,161.24,161.23,115.1]
[1754259436850,3.24,161.24,161.23,115.1]
[1754259437352,8.15703161,161.26,161.23,115.1]
[1754259437553,8.15703161,161.26,161.25,3.53]
[1754259437857,7.78415665,161.26,161.25,3.53]
[1754259438950,3.22,161.25,161.24,114.92]
[1754259439448,4.56403835,161.25,161.1,233.0]
[1754259439647,4.93703161,161.26,161.12,3.53]
[1754259439648,3.22,161.17,161.12,3.53]
[1754259439847,4.93703161,161.18,161.14,3.53]
[1754259439848,3.22,161.16,161.14,3.53]
[1754259440049,3.22,161.16,161.15,118.65]
[1754259440756,3.22,161.18,161.16,3.53]
[1754259440947,4.93703161,161.2,161.16,3.53]
[1754259441154,3.22,161.17,161.16,3.53]
[1754259445856,3.22,161.17,161.15,115.12]
[1754259446058,3.22,161.19,161.16,3.53]
[1754259446352,6.2035,161.19,161.16,3.53]
[1754259446762,3.22,161.17,161.16,3.53]
[1754259447061,3.22,161.16,161.15,115.12]
[1754259447462,3.22,161.16,161.15,118.65]
[1754259447961,3.22,161.17,161.16,3.53]
[1754259448258,7.78998682,161.17,161.16,3.53]
[1754259449358,7.79073504,161.17,161.16,3.53]
[1754259449662,7.79073504,161.17,161.16,118.45]
[1754259451558,7.7915097,161.17,161.16,118.45]
[1754259453370,13.9955097,161.17,161.16,118.45]
[1754259453661,13.9955097,161.17,161.16,114.92]
[1754259454563,7.7915097,161.17,161.16,118.45]
[1754259455569,3.22,161.17,161.16,118.45]
[1754259455967,14.10806285,161.21,161.16,118.45]
[1754259456165,4.57173974,161.2,161.17,3.53]
[1754259456468,3.22,161.21,161.17,3.53]
[1754259456670,4.57217912,161.2,161.17,3.53]
[1754259456969,7.79218247,161.19,161.18,3.53]
[1754259457271,3.22,161.18,161.17,3.53]
[1754259459068,3.22,161.2,161.16,114.92]
[1754259459269,4.57349191,161.19,161.18,3.53]
[1754259459570,7.79349191,161.19,161.18,118.29]
[1754259460072,4.57349191,161.19,161.18,118.29]
[1754259460265,7.90546285,161.23,161.18,114.76]
[1754259460573,3.22,161.21,161.18,114.76]
[1754259460771,4.5739799,161.2,161.18,114.76]
[1754259460972,3.22,161.21,161.18,114.76]
[1754259461172,4.57381265,161.2,161.19,3.53]
[1754259462972,7.79381265,161.2,161.19,3.53]
[1754259466675,4.57381265,161.2,161.19,3.53]
[1754259466973,3.46,161.24,161.19,3.53]
[1754259467167,4.57342792,161.23,161.19,8.4688311]
[1754259467374,3.46,161.26,161.23,3.38]
[1754259467679,4.57388502,161.25,161.24,118.02]
[1754259468969,6.92251471,161.28,161.25,3.38]
[1754259469175,3.46,161.26,161.25,3.38]
[1754259469469,3.46,161.25,161.17,3.38]
[1754259469676,3.46,161.18,161.12,3.38]
[1754259469869,3.46,161.16,161.1,3.38]
[1754259470074,6.92251471,161.27,161.11,118.26]
[1754259470075,3.46,161.14,161.11,118.26]
[1754259470580,3.46,161.13,161.11,118.26]
[1754259470773,3.46,161.13,161.11,114.88]
[1754259471070,3.46,161.13,161.12,3.38]
[1754259471266,3.46,161.12,161.11,118.26]
[1754259472879,3.46,161.13,161.12,3.38]
[1754259473377,7.90929405,161.17,161.09,422.967]
[1754259473572,3.46,161.12,161.09,416.76]
[1754259473780,14.11479405,161.14,161.1,114.82]
[1754259473971,8.03018068,161.13,161.1,114.82]
[1754259474171,4.57019601,161.12,161.1,114.82]
[1754259474372,3.46,161.13,161.1,114.82]
[1754259474573,4.57019601,161.12,161.1,114.82]
[1754259474776,3.46,161.11,161.1,114.82]
[1754259475175,4.56939852,161.11,161.07,6.89920952]
[1754259475377,4.56939852,161.11,161.08,118.18]
[1754259475378,3.46,161.09,161.08,118.18]
[1754259476279,3.46,161.09,161.08,114.8]
[1754259476479,3.46,161.09,161.06,3.38]
[1754259476780,3.46,161.09,161.07,114.86]
[1754259477782,3.46,161.08,161.07,114.86]
[1754259478787,3.46,161.08,161.07,118.24]
[1754259479788,3.46,161.08,161.07,114.9]
[1754259480882,3.46,161.08,161.07,118.28]
[1754259481578,3.46,161.1,161.07,114.9]
[1754259481782,3.46,161.13,161.08,3.38]
[1754259482087,4.5639514,161.12,161.1,3.38]
[1754259482288,3.46,161.13,161.11,114.9]
[1754259482485,7.90929405,161.14,161.12,3.38]
[1754259482686,4.56410385,161.13,161.12,3.38]
[1754259483384,3.46,161.17,161.12,3.38]
[1754259483589,4.56594047,161.16,161.12,3.38]
[1754259483788,4.56594047,161.15,161.14,3.38]
[1754259484093,3.46,161.17,161.14,3.38]
[1754259484387,4.56746563,161.16,161.15,118.3]
[1754259485590,4.56746563,161.16,161.15,3.38]
[1754259485795,4.56774525,161.16,161.15,114.92]
[1754259485996,4.56774525,161.16,161.15,118.3]
[1754259486389,8.02774525,161.16,161.15,118.3]
[1754259487292,4.56774525,161.16,161.15,118.3]
[1754259487687,3.46,161.2,161.16,3.38]
[1754259487889,4.56858249,161.19,161.16,3.38]
[1754259488193,4.56858249,161.18,161.16,3.38]
[1754259488393,3.46,161.22,161.16,3.38]
[1754259488593,4.56815663,161.21,161.16,3.38]
[1754259488896,3.46,161.19,161.16,3.38]
[1754259489092,4.56815663,161.18,161.16,3.38]
[1754259489291,3.46,161.22,161.16,3.38]
[1754259489493,8.02814332,161.21,161.16,3.38]
[1754259489689,4.56814332,161.2,161.16,3.38]
[1754259489995,3.46,161.21,161.17,3.38]
[1754259490198,4.56756048,161.2,161.17,3.38]
[1754259490392,3.46,161.2,161.17,3.38]
[1754259491496,3.46,161.2,161.18,3.38]
[1754259491697,3.46,161.2,161.19,118.2]
[1754259491894,4.56665406,161.22,161.19,124.4033]
[1754259492098,3.46,161.24,161.2,3.38]
[1754259492298,4.56651883,161.23,161.2,3.38]
[1754259492500,14.83180876,161.29,161.21,3.38]
[1754259492703,3.46,161.26,161.21,3.38]
[1754259492998,8.02621679,161.25,161.21,3.38]
[1754259493190,4.56621679,161.24,161.21,3.38]
[1754259493395,3.46,161.25,161.21,3.38]
[1754259493595,4.56414058,161.24,161.21,3.38]
[1754259493795,3.46,161.25,161.21,3.38]
[1754259494000,4.56412382,161.24,161.21,3.38]
[1754259494304,14.83180876,161.29,161.21,3.38]
[1754259494305,3.35,161.27,161.21,3.38]
[1754259494497,7.90929405,161.29,161.21,3.38]
[1754259494498,7.91317787,161.26,161.21,3.38]
[1754259494803,3.35,161.25,161.22,3.41]
[1754259495392,3.35,161.25,161.2,3.41]
[1754259495603,3.35,161.28,161.22,3.41]
[1754259495804,4.56127329,161.27,161.21,114.82]
[1754259496005,4.56127329,161.26,161.23,3.41]
[1754259496205,3.35,161.24,161.23,3.41]
[1754259499203,3.35,161.24,161.21,6.2024]
[1754259499411,3.35,161.22,161.16,3.41]
[1754259499707,3.35,161.15,161.14,118.57]
[1754259502507,3.35,161.13,161.09,417.02]
[1754259502707,7.91205347,161.14,161.1,118.53]
[1754259503010,3.35,161.11,161.1,118.53]
[1754259503209,3.35,161.11,161.09,417.02]
[1754259503412,7.91205347,161.14,161.09,532.22]
[1754259503606,3.35,161.13,161.1,3.41]
[1754259503914,3.35,161.12,161.09,532.22]
[1754259504213,3.35,161.11,161.1,3.41]
[1754259504409,3.35,161.11,161.09,532.22]
[1754259504816,3.35,161.1,161.09,535.63]
[1754259505913,3.35,161.1,161.09,420.43]
[1754259506115,3.35,161.1,161.09,535.61]
[1754259509714,3.35,161.1,161.09,541.8171]
[1754259510116,3.35,161.11,161.1,3.41]
[1754259510619,3.35,161.14,161.11,3.41]
[1754259510812,3.35,161.14,161.13,3.41]
[1754259512021,3.35,161.17,161.13,3.41]
[1754259512218,3.35,161.2,161.14,115.08]
[1754259512521,3.35,161.18,161.15,3.41]
[1754259512717,3.35,161.18,161.16,3.41]
[1754259512922,3.35,161.18,161.17,118.49]
[1754259513125,7.90304073,161.2,161.17,118.49]
[1754259513322,4.55304073,161.19,161.18,3.41]
[1754259514124,3.35,161.2,161.19,3.41]
[1754259514313,7.90553816,161.2,161.19,3.41]
[1754259514918,3.35,161.2,161.19,3.41]
[1754259519021,3.35,161.21,161.17,118.49]
[1754259519617,3.35,161.21,161.17,3.41]